bitfinex/quotes_SOLUSD_20260226
["timestamp","ask_amount","ask_price","bid_price","bid_amount"]
[1772146862133,0.5253165,86.172,86.151,0.49321812]
[1772146862427,11.60173561,86.194,86.161,0.49321812]
[1772146862620,11.60123813,86.198,86.161,0.49321812]
[1772146862827,11.60123813,86.198,86.171,0.49321812]
[1772146863416,12.12655463,86.198,86.171,0.49321812]
[1772146864623,0.5253165,86.197,86.164,0.49321812]
[1772146864830,0.5253165,86.189,86.158,0.49321812]
[1772146867040,3.72849105,86.18,86.158,0.49321812]
[1772146867535,4.25380755,86.18,86.158,0.49321812]
[1772146867913,0.5253165,86.179,86.158,0.49321812]
[1772146868731,0.5253165,86.179,86.152,0.49321812]
[1772146868918,4.25380755,86.17,86.139,0.49321812]
[1772146869118,11.6051016,86.169,86.141,0.49321812]
[1772146870131,3.72849105,86.17,86.141,0.49321812]
[1772146871238,0.50484927,86.174,86.141,0.49321812]
[1772146873237,0.50484927,86.172,86.141,0.49321812]
[1772146875544,40.59712571,86.213,86.142,40.91490983]
[1772146875835,40.59712571,86.213,86.161,0.49600701]
[1772146875836,0.50484927,86.199,86.161,0.49600701]
[1772146876433,0.50484927,86.189,86.161,0.49600701]
[1772146877635,0.50484927,86.187,86.161,0.49600701]
[1772146878031,11.60254327,86.188,86.151,0.49600701]
[1772146878238,0.50484927,86.191,86.151,0.49600701]
[1772146879638,0.50484927,86.189,86.153,0.49600701]
[1772146880845,0.50484927,86.187,86.155,0.49600701]
[1772146883256,11.60281252,86.186,86.156,0.49600701]
[1772146883449,0.50484927,86.185,86.156,0.49600701]
[1772146885740,0.50484927,86.179,86.156,0.49600701]
[1772146888048,11.60388962,86.178,86.156,0.49600701]
[1772146889147,0.50484927,86.177,86.156,0.49600701]
[1772146889450,0.50484927,86.177,86.143,0.49600701]
[1772146889946,0.50484927,86.175,86.143,0.49600701]
[1772146890128,0.50484927,86.169,86.143,0.49600701]
[1772146890328,0.50484927,86.169,86.137,0.49600701]
[1772146891038,0.50484927,86.159,86.132,0.49600701]
[1772146891945,0.50484927,86.157,86.127,0.49600701]
[1772146893265,0.50484927,86.149,86.127,0.49600701]
[1772146896358,0.50484927,86.157,86.128,0.49600701]
[1772146898455,11.60685268,86.156,86.128,0.49600701]
[1772146898754,12.08377546,86.156,86.128,0.49600701]
[1772146899650,0.48287564,86.155,86.128,0.49600701]
[1772146901740,0.48287564,86.155,86.13,0.50626467]
[1772146902046,12.08999777,86.154,86.13,0.50626467]
[1772146905457,0.48287564,86.153,86.13,0.50626467]
[1772146910151,11.60739158,86.152,86.13,0.50626467]
[1772146913653,0.48287564,86.152,86.13,0.50626467]
[1772146914972,0.48287564,86.149,86.11,15.54385966]
[1772146915154,0.48287564,86.139,86.11,0.2]
[1772146915977,0.48287564,86.137,86.11,0.2]
[1772146917465,0.48287564,86.137,86.111,0.50626467]
[1772146918572,0.48287564,86.135,86.111,0.50626467]
[1772146921478,0.48287564,86.133,86.1,0.70626467]
[1772146921682,0.48287564,86.129,86.101,0.50626467]
[1772146926680,0.48287564,86.127,86.101,0.50626467]
[1772146927680,0.48287564,86.125,86.101,0.50626467]
[1772146930191,0.47523588,86.123,86.101,0.50626467]
[1772146930685,0.47523588,86.109,86.09,0.2]
[1772146930865,0.47523588,86.109,86.08,0.2]
[1772146931788,0.47523588,86.099,86.08,0.2]
[1772146931985,0.47523588,86.099,86.07,0.2]
[1772146931986,0.47523588,86.089,86.07,0.2]
[1772146932190,0.47523588,86.079,86.06,0.2]
[1772146933481,0.47523588,86.077,86.06,0.2]
[1772146936491,11.61764022,86.076,86.06,0.2]
[1772146936697,0.47523588,86.075,86.06,0.2]
[1772146937699,11.61703283,86.081,86.061,0.46963866]
[1772146937897,11.61480655,86.097,86.062,0.46963866]
[1772146938193,3.73082113,86.14,86.091,0.46963866]
[1772146938400,3.73082113,86.17,86.131,0.46963866]
[1772146938588,40.62256989,86.159,86.124,0.46963866]
[1772146938791,40.62256989,86.159,86.081,11.61696541]
[1772146938792,0.47523588,86.129,86.081,11.61696541]
[1772146938975,0.47523588,86.109,86.072,0.28432314]
[1772146939576,3.73082113,86.1,86.061,11.61966512]
[1772146939882,3.73082113,86.12,86.06,0.2]
[1772146939883,0.47523588,86.089,86.06,0.2]
[1772146940683,0.47523588,86.079,86.06,1e-08]
[1772146942594,0.47523588,86.079,86.06,0.46963867]
[1772146942788,11.61480655,86.097,86.061,0.46963866]
[1772146942988,11.61197426,86.118,86.081,0.46963866]
[1772146944807,11.61197426,86.118,86.083,0.46963866]
[1772146946689,11.61197426,86.118,86.082,11.58646912]
[1772146948592,11.61197426,86.118,86.083,0.46963866]
[1772146949393,12.08721014,86.118,86.083,0.46963866]
[1772146951511,0.47523588,86.117,86.085,0.46963866]
[1772146952709,0.47523588,86.109,86.079,0.46963866]
[1772146952897,0.47523588,86.089,86.065,0.46963866]
[1772146953097,0.47523588,86.089,86.06,1e-08]
[1772146953316,0.47523588,86.079,86.06,1e-08]
[1772146954318,3.73082113,86.08,86.06,1e-08]
[1772146954319,0.47523588,86.077,86.06,1e-08]
[1772146954813,11.61737029,86.078,86.06,1e-08]
[1772146955018,11.61575095,86.09,86.06,1e-08]
[1772146955514,0.47523588,86.079,86.06,1e-08]
[1772146955894,3.73082113,86.08,86.06,1e-08]
[1772146956313,11.61723533,86.079,86.06,1e-08]
[1772146956811,12.08284138,86.079,86.06,1e-08]
[1772146957417,3.73082113,86.07,86.05,0.2]
[1772146957737,0.46560605,86.059,86.04,0.2]
[1772146958418,0.46560605,86.067,86.041,0.48014686]
[1772146960803,0.47752761,86.065,86.041,0.48014686]
[1772146961119,11.61899007,86.066,86.041,0.48014686]
[1772146961304,0.47752761,86.089,86.051,0.4658575]
[1772146961704,0.47752761,86.079,86.051,0.4658575]
[1772146962107,0.47752761,86.079,86.041,0.4658575]
[1772146963525,0.47752761,86.077,86.041,0.4658575]
[1772146965014,0.47752761,86.077,86.043,0.4658575]
[1772146965726,11.61764022,86.076,86.043,0.4658575]
[1772146966028,0.47752761,86.075,86.043,0.4658575]
[1772146966832,11.61791017,86.074,86.044,11.62196085]
[1772146967031,0.47752761,86.115,86.066,0.28432314]
[1772146967208,12.08936185,86.12,86.091,0.4658575]
[1772146968409,12.08865243,86.125,86.091,0.4658575]
[1772146968604,3.73082113,86.14,86.051,5.36086188]
[1772146968605,0.47752761,86.132,86.101,0.4658575]
[1772146968833,11.61022163,86.131,86.101,0.4658575]
[1772146969130,11.61022163,86.131,86.103,0.4658575]
[1772146969720,11.61022163,86.131,86.072,3.69383402]
[1772146969721,3.73082113,86.13,86.072,3.69383402]
[1772146969913,0.47752761,86.109,86.075,0.4658575]
[1772146971731,0.47752761,86.107,86.075,0.4658575]
[1772146973008,0.47752761,86.085,86.04,0.2]
[1772146973214,0.47752761,86.069,86.04,0.2]
[1772146973634,0.47752761,86.069,86.04,11.82248065]
[1772146973829,0.47752761,86.067,86.041,0.4658575]
[1772146974132,0.47752761,86.067,86.04,11.82248065]
[1772146974133,0.47752761,86.109,86.061,0.4658575]
[1772146974341,0.47752761,86.129,86.101,0.4658575]
[1772146974517,0.47752761,86.109,86.06,3.73082113]
[1772146974716,0.47752761,86.079,86.04,44.60955468]
[1772146975045,0.47752761,86.069,86.041,11.62236608]
[1772146975726,0.47752761,86.088,86.051,0.14216157]
[1772146976036,3.73797155,86.09,86.042,0.14216157]
[1772146976037,0.47752761,86.102,86.07,3.73797155]
[1772146976225,0.47752761,86.099,86.061,11.61966512]
[1772146977222,0.47752761,86.099,86.07,3.73797155]
[1772146978541,0.47752761,86.099,86.071,0.26472208]
[1772146978728,12.09207067,86.099,86.071,0.26472208]
[1772146978933,0.47752761,86.098,86.071,0.26472208]
[1772146980437,3.73797155,86.16,86.091,0.26436171]
[1772146980438,0.47752761,86.127,86.091,0.26436171]
[1772146980618,0.47752761,86.109,86.077,11.61741905]
[1772146980820,0.47752761,86.099,86.068,0.26436171]
[1772146981432,0.47752761,86.099,86.059,0.26403996]
[1772146981622,0.47752761,86.079,86.044,0.26403996]
[1772146981823,0.47752761,86.086,86.044,0.26403996]
[1772146982126,0.47752761,86.099,86.071,0.26403996]
[1772146982323,0.47752761,86.107,86.071,0.26403996]
[1772146982526,0.47752761,86.105,86.072,0.2637219]
[1772146983735,0.47752761,86.105,86.044,3.69383402]
[1772146983736,3.73797155,86.09,86.055,0.26340749]
[1772146984037,0.47752761,86.069,86.041,0.26340749]
[1772146984241,3.73797155,86.08,86.041,0.26340749]
[1772146985540,11.61723533,86.079,86.043,0.4658575]
[1772146985937,3.73797155,86.07,86.043,0.4658575]
[1772146986241,4.21549916,86.07,86.043,0.4658575]
[1772146986545,0.47752761,86.07,86.043,0.4658575]
[1772146986744,11.61858508,86.069,86.043,0.4658575]
[1772146987042,11.61858508,86.069,86.04,0.2]
[1772146987043,0.47752761,86.059,86.04,0.2]
[1772146987828,3.69383402,86.095,86.051,0.4658575]
[1772146987829,0.47752761,86.094,86.051,0.4658575]
[1772146988033,0.47752761,86.094,86.06,3.73797155]
[1772146988240,0.47752761,86.089,86.05,3.73797155]
[1772146988940,0.47752761,86.069,86.04,0.2]
[1772146989141,0.47752761,86.069,86.02,0.2]
[1772146989142,0.47752761,86.049,86.02,0.2]
[1772146989341,0.47752761,86.039,86.02,0.2]
[1772146989558,3.69383402,86.077,86.022,0.48939113]
[1772146989722,3.73797155,86.06,86.022,0.48939113]
[1772146990427,3.73797155,86.05,86.02,0.2]
[1772146990627,3.73797155,86.03,86.02,1e-08]
[1772146990840,11.62365691,86.032,86.02,1e-08]
[1772146991125,3.73797155,86.05,86.021,0.48939113]
[1772146991357,0.28432314,86.071,86.031,0.48939113]
[1772146991358,10.01636592,86.07,86.031,0.48939113]
[1772146991637,0.48417857,86.077,86.041,0.48939113]
[1772146991837,10.01636592,86.07,86.041,0.48939113]
[1772146992036,0.48417857,86.069,86.041,0.48939113]
[1772146993541,11.61872008,86.068,86.041,0.48939113]
[1772146996944,12.10289865,86.068,86.041,0.48939113]
[1772146997646,0.48417857,86.067,86.041,0.48939113]
[1772146998721,0.48417857,86.065,86.03,10.01636592]
[1772146998928,0.48417857,86.039,86.02,1e-08]
[1772147000943,40.66646526,86.066,86.02,1e-08]
[1772147000944,0.48417857,86.048,86.02,1e-08]
[1772147001126,12.10559917,86.048,86.021,0.48939113]
[1772147001326,11.61993654,86.059,86.031,0.48939113]
[1772147001520,0.48417857,86.058,86.031,0.48939113]
[1772147001932,0.48417857,86.049,86.02,1e-08]
[1772147002149,10.50054449,86.04,86.02,1e-08]
[1772147003034,12.1068144,86.04,86.02,1e-08]
[1772147003650,11.62097453,86.052,86.021,0.48939113]
[1772147006160,10.01636592,86.06,86.024,0.28432314]
[1772147006339,0.48417857,86.079,86.041,0.48939113]
[1772147006541,0.48417857,86.059,86.024,0.28432314]
[1772147006851,0.48417857,86.049,86.02,1e-08]
[1772147007030,0.48417857,86.039,86.001,11.62777177]
[1772147007231,0.48417857,86.039,86.002,0.28432314]
[1772147007425,0.48417857,86.039,86.01,10.01636592]
[1772147007656,0.48417857,86.058,86.02,10.01636592]
[1772147008539,0.48417857,86.056,86.023,0.48939113]
[1772147009552,0.48417857,86.056,86.0,0.2]
[1772147009553,10.01636592,86.05,86.01,10.01636592]
[1772147009732,0.48417857,86.039,86.006,0.48939113]
[1772147009928,0.48417857,86.039,86.01,10.01636592]
[1772147010146,0.48417857,86.039,86.011,0.48939113]
[1772147011752,0.48417857,86.037,86.005,12.11659611]
[1772147011957,0.48417857,86.037,86.006,0.48939113]
[1772147012752,0.48417857,86.037,86.007,0.48939113]
[1772147012955,0.48417857,86.037,86.01,10.50575705]
[1772147013156,0.48417857,86.037,86.011,0.48939113]
[1772147013448,11.62190619,86.045,86.011,0.48939113]
[1772147013639,0.48417857,86.049,86.023,0.48939113]
[1772147013640,12.10546411,86.049,86.023,0.48939113]
[1772147013848,0.48417857,86.056,86.023,0.48939113]
[1772147014037,0.48417857,86.056,86.007,29.1]
[1772147014038,10.01636592,86.05,86.002,0.77371427]
[1772147014234,0.48417857,86.049,86.005,0.48939113]
[1772147014761,0.48417857,86.039,86.005,0.48939113]
[1772147016454,0.48417857,86.039,86.007,0.48939113]
[1772147017035,10.01636592,86.03,86.0,0.67756625]
[1772147017249,0.49001934,86.029,86.0,0.67756625]
[1772147017451,0.49001934,86.029,86.0,0.2]
[1772147017838,0.49001934,86.019,85.99,0.1]
[1772147018053,0.49001934,86.009,85.97,0.57756625]
[1772147018257,0.49001934,86.034,85.961,0.47756625]
[1772147018552,0.49001934,86.027,86.001,0.47756625]
[1772147018759,11.62331171,86.034,86.01,10.49393217]
[1772147018937,0.49001934,86.033,86.01,10.49393217]
[1772147019259,0.49001934,86.033,86.01,10.01636592]
[1772147020542,11.62358192,86.032,86.01,10.01636592]
[1772147021437,0.49870767,86.031,86.004,0.49092503]
[1772147021648,0.49870767,86.029,85.989,0.49092503]
[1772147021856,0.49870767,86.029,85.991,0.49092503]
[1772147022048,11.62358192,86.032,86.01,10.50729095]
[1772147023152,0.49870767,86.031,86.01,0.49092503]
[1772147024678,10.01636592,86.03,85.988,12.12035862]
[1772147024851,0.49870767,86.029,85.99,10.01636592]
[1772147025170,0.49870767,86.009,85.971,0.49092503]
[1772147025666,40.68442831,86.028,85.96,10.11636592]
[1772147025667,0.49870767,85.999,85.96,0.1]
[1772147025967,0.49870767,85.992,85.962,0.49092503]
[1772147026168,10.01636592,86.01,85.971,0.49092503]
[1772147026470,0.49870767,85.999,85.961,0.49092503]
[1772147026857,0.49870767,85.999,85.961,12.12410751]
[1772147027168,0.49870767,85.997,85.962,0.49092503]
[1772147027850,11.62746368,86.004,85.971,0.49092503]
[1772147028262,12.12617135,86.004,85.971,0.49092503]
[1772147028573,10.01636592,86.0,85.97,0.49092503]
[1772147028776,0.49870767,85.999,85.971,0.49092503]
[1772147029349,0.49870767,85.999,85.972,12.12261906]
[1772147029970,0.49870767,85.999,85.973,0.49092503]
[1772147030269,12.12688506,85.998,85.973,0.49092503]
[1772147030470,0.49870767,85.997,85.973,0.49092503]
[1772147030673,0.49870767,85.997,85.969,0.49092503]
[1772147031247,0.49870767,85.997,85.961,0.49092503]
[1772147031554,0.49870767,85.995,85.961,0.49092503]
[1772147031858,11.62794397,86.0,85.971,0.49092503]
[1772147032560,12.12665164,86.0,85.971,0.49092503]
[1772147032754,0.49870767,85.999,85.971,0.49092503]
[1772147033770,0.49870767,85.997,85.964,0.49092503]
[1772147033972,0.49870767,85.997,85.971,0.49092503]
[1772147035669,0.49870767,86.004,85.973,0.49092503]
[1772147035869,0.49870767,86.011,85.981,0.49092503]
[1772147036876,0.49870767,86.009,85.96,0.1]
[1772147037174,0.49870767,85.989,85.952,0.49092503]
[1772147037372,0.49870767,85.989,85.961,0.49092503]
[1772147037770,11.6295297,85.988,85.961,0.49092503]
[1772147038484,0.49870767,85.987,85.961,0.49092503]
[1772147038971,11.6295297,85.988,85.961,0.49092503]
[1772147039267,12.12823737,85.988,85.961,0.49092503]
[1772147039573,12.12823737,85.988,85.95,3.84390359]
[1772147039574,0.49870767,85.987,85.953,0.49092503]
[1772147040672,3.74390359,86.01,85.974,0.49092503]
[1772147040860,0.49870767,86.023,86.0,4.23482862]
[1772147041053,0.49870767,86.023,86.001,0.49092503]
[1772147041375,0.49870767,86.023,85.993,0.49092503]
[1772147041747,0.49870767,86.023,85.96,3.74390359]
[1772147041748,0.49870767,86.023,86.0,3.74390359]
[1772147041951,0.49870767,86.031,86.001,0.49092503]
[1772147042163,0.49870767,86.031,85.96,3.74390359]
[1772147042164,0.49870767,86.048,86.011,0.49092503]
[1772147042455,40.66552028,86.068,85.974,3.69383402]
[1772147042456,0.49870767,86.057,86.021,0.49092503]
[1772147042655,0.49870767,86.055,86.021,0.49092503]
[1772147043073,0.49870767,86.049,86.012,0.49092503]
[1772147043356,0.49870767,86.029,85.996,0.49092503]
[1772147044670,12.12281867,86.029,85.997,11.62831261]
[1772147044872,0.49870767,86.028,85.997,11.62831261]
[1772147045177,0.49870767,86.028,85.997,12.11923764]
[1772147045411,0.49870767,86.028,85.998,0.49092503]
[1772147045683,11.62267696,86.039,86.011,0.49092503]
[1772147045865,12.12061631,86.045,86.021,0.49092503]
[1772147046069,12.12061631,86.045,85.987,0.49092503]
[1772147046070,0.49870767,86.044,85.987,0.49092503]
[1772147046378,0.49870767,86.037,86.001,0.49092503]
[1772147046689,0.49870767,86.029,85.993,0.28432314]
[1772147046973,0.49870767,86.029,85.968,3.69383402]
[1772147046974,0.49870767,86.009,85.976,0.49092503]
[1772147047180,10.01951681,86.0,85.976,0.49092503]
[1772147047385,10.51822448,86.0,85.976,0.49092503]
[1772147047557,10.01951681,85.99,85.962,0.28432314]
[1772147047759,0.49870767,85.989,85.958,0.49092503]
[1772147048164,0.49870767,85.989,85.96,0.49092503]
[1772147048667,0.49870767,85.997,85.964,0.49092503]
[1772147048868,0.49870767,85.995,85.965,11.63264119]
[1772147049179,0.49870767,85.995,85.964,0.49092503]
[1772147050368,0.49870767,85.995,85.964,12.12367918]
[1772147050568,0.49870767,85.995,85.956,0.4528]
[1772147050863,11.63088231,85.978,85.95,0.5528]
[1772147051055,12.11480216,85.978,85.95,0.5528]
[1772147052376,0.48391985,85.977,85.95,0.1]
[1772147052576,0.48391985,85.969,85.95,0.1]
[1772147053085,10.01951681,85.97,85.95,0.1]
[1772147053384,0.48391985,85.976,85.95,0.1]
[1772147054584,11.63145503,85.974,85.95,0.1]
[1772147054779,10.01951681,85.97,85.95,0.1]
[1772147054985,0.48391985,85.969,85.95,0.1]
[1772147055881,10.01951681,85.96,85.95,0.1]
[1772147056178,0.48391985,85.969,85.95,0.1]
[1772147056779,10.01951681,85.97,85.95,0.1]
[1772147057391,21.65149524,85.97,85.95,0.1]
[1772147057587,10.01951681,85.97,85.95,0.1]
[1772147058180,10.01951681,85.97,85.95,0.5528]
[1772147058485,0.48391985,85.989,85.951,0.4528]
[1772147058668,0.48391985,85.988,85.953,0.4528]
[1772147059772,0.48391985,85.988,85.952,11.63440059]
[1772147059773,11.62874766,85.994,85.961,0.4528]
[1772147059967,0.48391985,85.989,85.961,0.4528]
[1772147060192,0.48391985,85.989,85.955,0.4528]
[1772147060866,11.62874766,85.994,85.95,10.11951681]
[1772147060867,0.48391985,85.979,85.95,0.1]
[1772147061565,0.48391985,85.979,85.951,11.63453595]
[1772147061991,0.48391985,85.979,85.95,0.1]
[1772147062375,0.48391985,85.969,85.95,0.1]
[1772147064176,0.48391985,85.959,85.931,0.4528]
[1772147064378,0.48391985,85.959,85.932,11.63710841]
[1772147064582,0.48391985,85.959,85.933,0.4528]
[1772147065798,11.63223525,85.968,85.933,0.4528]
[1772147065995,0.48391985,85.967,85.933,0.4528]
[1772147066695,11.62939445,85.989,85.951,0.4528]
[1772147066998,0.48391985,85.988,85.951,0.4528]
[1772147067378,40.70288059,85.989,85.941,0.4528]
[1772147067379,0.48391985,85.979,85.941,0.4528]
[1772147067773,0.48391985,85.969,85.934,11.63683757]
[1772147067976,0.48391985,85.949,85.93,0.1]
[1772147068880,11.63494205,85.948,85.93,0.1]
[1772147069696,0.48391985,85.971,85.93,0.24216157]
[1772147069896,0.50003798,85.979,85.941,0.28432314]
[1772147071198,0.50003798,85.977,85.943,0.28432314]
[1772147073308,0.50003798,85.984,85.951,0.28432314]
[1772147076422,11.62814113,85.999,85.961,0.28432314]
[1772147076708,11.62814113,85.999,85.97,10.01951681]
[1772147076902,0.50003798,85.998,85.96,10.01951681]
[1772147077211,3.69383402,86.035,85.952,40.72040207]
[1772147077212,10.01951681,86.03,85.98,10.01951681]
[1772147077408,10.01951681,86.03,85.952,98.89240504]
[1772147077409,0.50003798,86.029,85.99,10.01951681]
[1772147078301,11.62412237,86.028,85.982,11.63034123]
[1772147078501,0.50003798,86.027,85.983,0.28432314]
[1772147079618,0.50003798,86.027,85.99,10.01951681]
[1772147080913,11.62439262,86.026,85.991,11.62912397]
[1772147081105,0.50003798,86.025,85.991,11.62912397]
[1772147081615,0.50003798,86.019,85.986,11.62970857]
[1772147081821,0.50003798,86.019,85.981,11.63037573]
[1772147083117,0.50003798,86.017,85.981,11.63037573]
[1772147084609,0.50003798,86.017,85.982,0.28432314]
[1772147085824,0.50003798,86.015,85.984,0.28432314]
[1772147087427,0.50003798,86.031,85.991,0.28432314]
[1772147087630,12.1237881,86.031,86.0,10.01951681]
[1772147087931,0.50003798,86.031,86.01,10.01951681]
[1772147088108,0.50003798,86.047,86.01,10.01951681]
[1772147088918,0.50003798,86.039,86.0,10.01951681]
[1772147089706,0.50003798,86.039,86.01,10.01951681]
[1772147090726,0.50003798,86.039,86.011,11.62641987]
[1772147090932,0.50003798,86.047,86.02,10.01951681]
[1772147091228,0.50003798,86.047,86.02,3.73895162]
[1772147091427,0.50003798,86.047,86.012,0.28432314]
[1772147093434,0.50003798,86.047,86.014,0.28432314]
[1772147093732,0.50003798,86.046,86.014,0.28432314]
[1772147094732,0.50003798,86.046,86.014,29.38432314]
[1772147095126,11.62169072,86.046,86.014,29.38432314]
[1772147095331,0.50003798,86.045,86.014,29.38432314]
[1772147095530,0.50003798,86.043,86.014,29.38432314]
[1772147095835,0.50003798,86.043,86.015,11.6258792]
[1772147100448,0.50003798,86.07,86.031,0.28432314]
[1772147100618,0.50003798,86.07,86.05,3.73953221]
[1772147100821,3.73953221,86.06,86.031,0.28432314]
[1772147101020,0.50003798,86.059,86.021,11.62506829]
[1772147101325,0.50003798,86.059,86.022,0.28432314]
[1772147101522,0.50003798,86.069,86.031,0.28432314]
[1772147101726,0.50003798,86.069,86.04,3.73953221]
[1772147102124,0.50003798,86.069,86.031,0.28432314]
[1772147102334,3.73953221,86.06,86.02,3.73953221]
[1772147102524,0.50003798,86.059,86.021,0.28432314]
[1772147103550,0.50003798,86.049,86.01,15.36596729]
[1772147103752,0.50003798,86.039,86.01,11.62643508]
[1772147103923,0.50003798,86.039,86.011,0.28432314]
[1772147104122,0.50003798,86.039,86.011,0.14216157]
[1772147104342,0.50003798,86.039,86.013,0.14216157]
[1772147104652,0.50003798,86.037,86.013,0.28432314]
[1772147106026,0.50003798,86.035,86.013,0.28432314]
[1772147107969,0.50003798,86.029,85.991,11.62912397]
[1772147108260,0.50003798,86.009,85.983,11.63020597]
[1772147108558,0.50003798,86.009,85.984,0.28432314]
[1772147108729,0.50003798,86.009,85.983,40.70572089]
[1772147109553,0.50003798,86.009,85.984,0.28432314]
[1772147109767,0.50003798,85.999,85.957,29.08430709]
[1772147110070,0.50003798,85.997,85.96,3.73953221]
[1772147110257,0.50003798,85.997,85.934,3.69383402]
[1772147110258,3.73953221,85.99,85.95,3.73953221]
[1772147110435,0.50003798,85.989,85.95,3.73953221]
[1772147111031,40.69862088,85.998,85.94,3.73953221]
[1772147111032,0.50003798,85.979,85.94,3.73953221]
[1772147111236,40.69862088,85.998,85.931,40.73035341]
[1772147111237,0.50003798,85.969,85.931,40.73035341]
[1772147111461,0.50003798,85.969,85.934,3.69383402]
[1772147111760,0.50003798,85.979,85.95,10.03555528]
[1772147111955,0.50003798,85.993,85.96,10.03555528]
[1772147112359,58.1176353,86.033,85.934,3.69383402]
[1772147112360,0.50003798,85.979,85.942,0.28432314]
[1772147112550,10.03555528,85.97,85.942,0.28432314]
[1772147112750,0.50003798,85.969,85.942,0.28432314]
[1772147114650,0.50003798,85.969,85.944,0.28432314]
[1772147116033,0.50003798,85.969,85.945,11.63534818]
[1772147116958,0.50003798,85.969,85.941,11.63588487]
[1772147117544,0.50003798,85.969,85.93,0.1]
[1772147117545,0.50003798,85.949,85.93,0.1]
[1772147117856,0.50003798,85.949,85.931,11.63724383]
[1772147118039,0.50003798,85.949,85.93,0.1]
[1772147118241,0.50003798,85.949,85.911,0.28432314]
[1772147118555,0.50003798,85.949,85.882,0.09996618]
[1772147118556,0.48987349,85.929,85.9,10.03555528]
[1772147118754,10.03555528,85.95,85.911,0.47752472]
[1772147118941,29.08338106,85.96,85.921,0.47752472]
[1772147118942,11.63345315,85.959,85.921,0.47752472]
[1772147120250,10.03555528,85.96,85.922,0.28432314]
[1772147120450,10.03555528,85.98,85.931,0.47752472]
[1772147120852,0.48987349,85.969,85.931,0.47752472]
[1772147121159,0.48987349,85.969,85.93,10.03555528]
[1772147121862,0.48987349,85.969,85.931,0.47752472]
[1772147122351,0.48987349,85.968,85.937,0.47752472]
[1772147125452,11.63237056,85.967,85.937,0.47752472]
[1772147125654,0.48987349,85.966,85.938,11.63629593]
[1772147127659,11.63264119,85.965,85.938,11.63629593]
[1772147127983,0.48987349,85.964,85.938,11.63629593]
[1772147128749,0.48987349,85.959,85.934,11.63681575]
[1772147128945,0.48987349,85.958,85.935,0.47752472]
[1772147129145,0.48987349,85.965,85.935,0.47752472]
[1772147130461,0.48987349,85.965,85.936,11.63656674]
[1772147130462,11.63292821,85.963,85.936,11.63656674]
[1772147130665,11.63292821,85.963,85.937,0.47752472]
[1772147131762,0.48987349,85.964,85.937,0.47752472]
[1772147134954,0.48987349,85.964,85.939,0.47752472]
[1772147136471,0.48987349,85.959,85.933,29.1]
[1772147137164,11.63358849,85.958,85.934,0.46687626]
[1772147137368,0.45033352,85.957,85.934,0.46687626]
[1772147138974,0.45033352,85.962,85.935,0.46687626]
[1772147139872,0.45033352,85.962,85.937,0.47958461]
[1772147140462,0.48514681,85.959,85.93,0.47958461]
[1772147141772,0.48514681,85.959,85.923,0.47958461]
[1772147141972,0.48514681,85.929,85.899,0.47958461]
[1772147142155,0.48514681,85.929,85.9,0.28432314]
[1772147142357,0.48514681,85.929,85.899,0.47958461]
[1772147143570,3.74709828,85.93,85.9,0.28432314]
[1772147143755,0.48514681,85.949,85.915,0.47958461]
[1772147143960,0.48514681,85.948,85.917,0.47958461]
[1772147144273,11.6348757,85.949,85.904,0.28432314]
[1772147144274,0.48514681,85.929,85.904,0.28432314]
[1772147145376,0.48514681,85.919,85.896,11.64187156]
[1772147145869,0.48514681,85.919,85.897,0.47958461]
[1772147146574,11.63643133,85.937,85.897,0.47958461]
[1772147146868,0.48514681,85.919,85.897,0.47958461]
[1772147147173,0.48514681,85.919,85.89,0.1]
[1772147147370,0.48514681,85.909,85.89,0.1]
[1772147148956,4.23224509,85.92,85.89,0.57958461]
[1772147149161,0.48514681,85.927,85.891,0.47958461]
[1772147150365,11.637921,85.926,85.893,0.47958461]
[1772147150666,0.48514681,85.934,85.901,0.47958461]
[1772147150874,11.63697299,85.933,85.901,0.47958461]
[1772147151463,0.48514681,85.934,85.901,0.47958461]
[1772147151664,0.48514681,85.94,85.911,0.47958461]
[1772147151981,0.48514681,85.939,85.911,0.47958461]
[1772147152872,0.48514681,85.939,85.912,11.63981748]
[1772147153178,0.48514681,85.939,85.913,0.47958461]
[1772147153378,11.63545026,85.945,85.913,0.47958461]
[1772147153575,0.48514681,85.947,85.915,0.47958461]
[1772147153773,3.74709828,85.95,85.914,0.28432314]
[1772147153774,0.48514681,85.955,85.921,0.47958461]
[1772147154582,3.74709828,85.96,85.921,0.47958461]
[1772147154583,0.48514681,85.953,85.921,0.47958461]
[1772147155284,0.48514681,85.953,85.923,0.47958461]
[1772147155480,0.48514681,85.959,85.925,0.47958461]
[1772147155980,0.48514681,85.958,85.925,0.47958461]
[1772147157477,0.48514681,85.958,85.927,0.47958461]
[1772147158068,3.74709828,85.96,85.927,0.47958461]
[1772147158387,11.63286104,85.964,85.931,0.47958461]
[1772147158682,0.48514681,85.966,85.931,0.47958461]
[1772147158875,12.117788,85.965,85.931,0.47958461]